bitfinex/quotes_BTCUSD_20250108
["timestamp","ask_amount","ask_price","bid_price","bid_amount"]
[1736360300970,0.0013208,94655.0,94619.0,1.19811375]
[1736360301338,0.050611,94620.0,94619.0,1.20511375]
[1736360301828,0.07788,94667.0,94619.0,1.20511375]
[1736360301829,0.07788,94674.0,94653.0,0.5365]
[1736360302029,0.00015115,94655.0,94654.0,0.5365]
[1736360302674,0.10445091,94655.0,94654.0,0.5365]
[1736360303058,0.10445091,94655.0,94632.0,0.15]
[1736360303059,0.10445091,94655.0,94631.0,0.5365]
[1736360303285,0.211306,94650.0,94638.0,0.15]
[1736360303535,0.10429976,94650.0,94638.0,0.15]
[1736360303752,0.10562048,94649.0,94632.0,0.211343]
[1736360303961,0.10429976,94649.0,94637.0,0.211332]
[1736360304164,0.00015115,94655.0,94647.0,0.211311]
[1736360304272,0.00015115,94655.0,94647.0,0.422622]
[1736360304478,0.00015115,94655.0,94647.0,0.761591]
[1736360304675,0.00015115,94655.0,94648.0,0.747809]
[1736360304981,0.00015115,94655.0,94649.0,0.211307]
[1736360305189,0.00015115,94655.0,94654.0,0.95249499]
[1736360305396,0.00015115,94655.0,94654.0,1.67533475]
[1736360305787,0.00115115,94655.0,94654.0,1.67533475]
[1736360306238,0.00015115,94655.0,94654.0,1.67533475]
[1736360306624,0.00915115,94655.0,94654.0,1.65333475]
[1736360306829,0.00915115,94655.0,94654.0,1.54903499]
[1736360307228,0.00015115,94655.0,94654.0,1.54903499]
[1736360307463,0.00015115,94655.0,94654.0,1.55303499]
[1736360307928,0.00015115,94655.0,94654.0,1.09174]
[1736360308166,0.00015115,94655.0,94654.0,0.55424]
[1736360308387,0.00015115,94655.0,94654.0,0.765535]
[1736360308562,0.00015115,94655.0,94654.0,0.767535]
[1736360309128,0.00015115,94655.0,94654.0,0.915535]
[1736360309332,0.00015115,94655.0,94654.0,0.911535]
[1736360309528,0.00215115,94655.0,94654.0,0.911535]
[1736360309960,0.00115115,94655.0,94654.0,0.911535]
[1736360310120,0.00215115,94655.0,94654.0,0.911535]
[1736360310324,0.00215115,94655.0,94654.0,0.88953499]
[1736360310771,0.00215115,94655.0,94654.0,0.89253499]
[1736360311151,0.00215115,94655.0,94654.0,0.68123999]
[1736360312164,0.00215115,94655.0,94654.0,0.67433999]
[1736360312383,0.00015115,94655.0,94654.0,0.67133999]
[1736360312575,0.00015115,94655.0,94654.0,1.20783999]
[1736360312800,0.00015115,94655.0,94654.0,1.20883999]
[1736360313166,0.00015115,94655.0,94654.0,1.31313975]
[1736360313421,0.00015115,94655.0,94654.0,1.31413975]
[1736360313608,0.00015115,94655.0,94654.0,1.31313975]
[1736360313744,0.00015115,94655.0,94654.0,1.31613975]
[1736360314154,0.00015115,94655.0,94654.0,1.31313975]
[1736360314353,0.00015115,94655.0,94654.0,1.31513975]
[1736360314614,0.00015115,94655.0,94654.0,1.33813975]
[1736360314815,0.00015115,94655.0,94654.0,1.61643975]
[1736360315021,0.001,94691.0,94655.0,0.5365]
[1736360315224,0.211225,94686.0,94656.0,0.08229975]
[1736360315423,0.10429976,94686.0,94674.0,0.747749]
[1736360315783,0.00150364,94691.0,94674.0,1.11553]
[1736360315994,0.00150364,94691.0,94679.0,0.211238]
[1736360316197,0.00150364,94691.0,94679.0,0.790238]
[1736360316451,0.31551476,94690.0,94679.0,0.579]
[1736360316638,0.10429976,94690.0,94679.0,0.579]
[1736360316825,0.211226,94685.0,94679.0,0.579]
[1736360317839,0.21122,94688.0,94679.0,0.579]
[1736360318058,0.00750364,94691.0,94679.0,0.790239]
[1736360318264,0.00250364,94691.0,94684.0,0.211228]
[1736360318439,0.00250364,94691.0,94689.0,0.211217]
[1736360318783,0.00250364,94691.0,94685.0,0.211226]
[1736360319292,0.00250364,94691.0,94686.0,0.211224]
[1736360319422,0.00141084,94691.0,94686.0,0.211224]
[1736360320069,0.00141084,94691.0,94685.0,0.57897]
[1736360320271,0.211215,94690.0,94685.0,0.57897]
[1736360321093,0.211224,94686.0,94685.0,0.55696999]
[1736360321289,0.31552376,94686.0,94685.0,0.55696999]
[1736360321640,0.214215,94690.0,94685.0,0.55696999]
[1736360321818,0.003,94690.0,94685.0,0.55696999]
[1736360321956,0.214215,94690.0,94685.0,0.55696999]
[1736360322352,0.003,94690.0,94685.0,0.55696999]
[1736360322787,0.00141084,94691.0,94686.0,0.211224]
[1736360322990,0.00141084,94691.0,94685.0,0.55696999]
[1736360323216,0.23227554,94710.0,94687.0,0.1]
[1736360323391,0.01141445,94706.0,94686.0,0.15]
[1736360323590,0.211197,94699.0,94686.0,0.15]
[1736360323767,0.002,94690.0,94686.0,0.15]
[1736360323991,0.10629976,94690.0,94686.0,0.15]
[1736360324249,0.10429976,94689.0,94686.0,0.15]
[1736360325215,0.10429976,94689.0,94686.0,0.12799999]
[1736360325417,0.10429976,94689.0,94685.0,0.55696999]
[1736360325625,0.211193,94700.0,94685.0,0.55696999]
[1736360325828,0.10429976,94699.0,94687.0,0.1]
[1736360326025,0.00015106,94710.0,94685.0,0.55696999]
[1736360326026,0.00015106,94710.0,94693.0,0.5365]
[1736360326239,0.31547276,94709.0,94693.0,0.5365]
[1736360326443,0.00131999,94708.0,94692.0,0.2]
[1736360326814,0.10429976,94707.0,94692.0,0.2]
[1736360327025,0.00015106,94710.0,94701.0,0.1]
[1736360327244,0.10445082,94710.0,94701.0,0.1]
[1736360327457,0.10445082,94710.0,94701.0,0.70088]
[1736360327675,0.00015106,94710.0,94702.0,0.1]
[1736360327884,0.05415106,94710.0,94709.0,0.25]
[1736360329267,0.05415106,94710.0,94709.0,0.1]
[1736360329670,0.06015106,94710.0,94709.0,0.1]
[1736360329873,0.05015106,94710.0,94709.0,0.1]
[1736360330284,0.05415106,94710.0,94709.0,0.07799999]
[1736360331039,0.05215106,94710.0,94703.0,0.61449999]
[1736360331245,0.05215106,94710.0,94704.0,0.211184]
[1736360331418,0.05215106,94710.0,94703.0,0.61449999]
[1736360331622,0.05215106,94710.0,94703.0,1.03686999]
[1736360331823,0.05215106,94710.0,94703.0,0.61449999]
[1736360332178,0.05215106,94710.0,94703.0,0.5365]
[1736360332385,0.31547276,94709.0,94703.0,0.5365]
[1736360333177,0.211181,94706.0,94703.0,0.5365]
[1736360333395,0.10429976,94705.0,94703.0,0.001]
[1736360333742,0.10429976,94705.0,94696.0,0.5365]
[1736360334171,0.10429976,94705.0,94703.0,0.001]
[1736360334381,0.10429976,94705.0,94697.0,0.07799999]
[1736360335173,0.10429976,94705.0,94696.0,0.5365]
[1736360335383,0.211176,94708.0,94702.0,0.57886999]
[1736360335591,0.211179,94706.0,94702.0,0.57886999]
[1736360335797,0.10829976,94705.0,94702.0,0.57886999]
[1736360335995,0.211184,94704.0,94702.0,0.57886999]
[1736360336303,0.10329976,94703.0,94702.0,0.57886999]
[1736360336704,0.10129976,94703.0,94702.0,0.57886999]
[1736360337278,0.09929976,94703.0,94702.0,0.57886999]
[1736360337633,0.09829976,94703.0,94702.0,0.57886999]
[1736360337824,0.09929976,94703.0,94702.0,0.57886999]
[1736360338066,0.09829976,94703.0,94702.0,0.57886999]
[1736360338295,0.11959188,94703.0,94702.0,0.57886999]
[1736360338535,0.11591191,94703.0,94702.0,0.57886999]
[1736360338774,0.12091191,94703.0,94702.0,0.57886999]
[1736360339018,0.11991191,94703.0,94702.0,0.57886999]
[1736360339210,0.11991191,94703.0,94702.0,0.57986999]
[1736360339484,0.14091192,94703.0,94702.0,0.57886999]
[1736360339729,0.14991192,94703.0,94702.0,0.57986999]
[1736360339946,0.12659188,94703.0,94702.0,0.57986999]
[1736360340202,0.12159188,94703.0,94702.0,0.57986999]
[1736360340402,0.19923188,94703.0,94702.0,0.55786998]
[1736360340609,0.12659188,94703.0,94702.0,0.55786998]
[1736360340780,0.10529976,94703.0,94702.0,0.55786998]
[1736360341185,0.009,94703.0,94702.0,0.55786998]
[1736360341418,0.014,94703.0,94702.0,0.55786998]
[1736360341857,0.009,94703.0,94702.0,0.55786998]
[1736360342266,0.11329976,94703.0,94702.0,0.55786998]
[1736360342435,0.1146198,94703.0,94702.0,0.55786998]
[1736360342647,0.10561984,94703.0,94702.0,0.55686998]
[1736360342890,0.11061984,94703.0,94702.0,0.55686998]
[1736360343111,0.20254537,94703.0,94702.0,0.55686998]
[1736360343309,0.12363271,94703.0,94702.0,0.55686998]
[1736360343695,0.14663272,94703.0,94702.0,0.55686998]
[1736360343944,0.16163272,94703.0,94702.0,0.53544057]
[1736360344147,0.18283272,94703.0,94702.0,0.53544057]
[1736360344357,0.23227554,94673.0,94660.0,0.0025]
[1736360344564,0.10562033,94672.0,94660.0,0.0025]
[1736360344770,0.02166663,94707.0,94674.0,0.07799999]
[1736360344977,0.006,94703.0,94702.0,0.001]
[1736360345179,0.11161988,94703.0,94702.0,0.001]
[1736360345379,0.11161988,94703.0,94680.0,0.07899999]
[1736360345578,0.422396,94698.0,94681.0,0.211235]
[1736360345750,0.23227554,94700.0,94680.0,0.07899999]
[1736360345751,0.31681895,94697.0,94680.0,0.07899999]
[1736360345964,0.00132019,94696.0,94680.0,0.07899999]
[1736360346261,0.10429976,94695.0,94680.0,0.07899999]
[1736360346454,0.211209,94693.0,94680.0,0.07899999]
[1736360346634,0.10429976,94692.0,94681.0,0.211235]
[1736360346832,0.10429976,94692.0,94680.0,0.07999999]
[1736360346833,0.211213,94691.0,94680.0,0.07899999]
[1736360347041,0.211217,94689.0,94680.0,0.07999999]
[1736360347245,0.10561995,94688.0,94680.0,0.07999999]
[1736360347472,0.10561995,94688.0,94680.0,0.07899999]
[1736360347614,0.10429976,94688.0,94680.0,0.29123699]
[1736360348265,0.10429976,94688.0,94680.0,0.07999999]
[1736360348470,0.10429976,94688.0,94685.0,0.211226]
[1736360348673,0.009,94693.0,94689.0,0.211217]
[1736360348874,0.009,94693.0,94692.0,0.15299999]
[1736360349080,0.00015103,94703.0,94692.0,0.286211]
[1736360349287,0.00015103,94703.0,94696.0,0.28919999]
[1736360349460,0.00015103,94703.0,94701.0,0.211189]
[1736360350107,0.04515103,94710.0,94701.0,0.211189]
[1736360350310,0.10429976,94709.0,94700.0,0.07799999]
[1736360350527,0.10429976,94709.0,94696.0,0.001]
[1736360350528,0.211188,94702.0,94696.0,0.001]
[1736360350734,0.10429976,94701.0,94696.0,0.001]
[1736360350942,0.10429976,94701.0,94692.0,0.28671286]
[1736360351136,0.10429976,94701.0,94692.0,0.07550286]
[1736360351758,0.006,94703.0,94695.0,0.07799999]
[1736360351969,0.006,94703.0,94699.0,0.07799999]
[1736360352469,0.008,94703.0,94702.0,0.28918799]
[1736360352690,0.04715103,94710.0,94706.0,0.211178]
[1736360353071,0.04515103,94710.0,94704.0,0.07799999]
[1736360353288,0.04515103,94710.0,94709.0,0.07799999]
[1736360354289,0.04815103,94710.0,94706.0,0.211179]
[1736360354468,0.04815103,94710.0,94709.0,0.07799999]
[1736360354630,0.04715103,94710.0,94709.0,0.07799999]
[1736360354829,0.04815103,94710.0,94709.0,0.07799999]
[1736360355381,0.04615103,94710.0,94709.0,0.05599998]
[1736360355759,0.04815103,94710.0,94709.0,0.05599998]
[1736360356146,0.04715103,94710.0,94709.0,0.94629997]
[1736360356330,0.04715103,94710.0,94709.0,0.86729998]
[1736360356528,0.04515103,94710.0,94709.0,0.94629997]
[1736360356735,0.04615103,94710.0,94709.0,0.86729998]
[1736360357132,0.04615103,94710.0,94709.0,0.94629997]
[1736360357333,0.04615103,94710.0,94709.0,0.87229998]
[1736360357739,0.04615103,94710.0,94709.0,0.87029998]
[1736360357982,0.04615103,94710.0,94709.0,0.94929997]
[1736360358159,0.04615103,94710.0,94709.0,0.95029997]
[1736360358991,0.04515103,94710.0,94709.0,0.94729997]
[1736360359186,0.04515103,94710.0,94709.0,0.94829997]
[1736360359962,0.04515103,94710.0,94709.0,0.94729997]
[1736360360238,0.04515103,94710.0,94709.0,0.92529996]
[1736360361092,0.04515103,94710.0,94709.0,0.92629996]
[1736360361947,0.04515103,94710.0,94709.0,0.92529996]
[1736360362117,0.04515103,94710.0,94709.0,0.84529997]
[1736360362317,0.04615103,94710.0,94709.0,0.85329997]
[1736360362829,0.04515103,94710.0,94709.0,0.71729998]
[1736360363295,0.04515103,94710.0,94709.0,0.1258]
[1736360363507,0.04515103,94710.0,94709.0,0.05999998]
[1736360363717,0.04515103,94710.0,94709.0,0.05899998]
[1736360363916,0.36062179,94710.0,94699.0,0.13099998]
[1736360364121,0.10429976,94709.0,94699.0,0.13099998]
[1736360364533,0.211175,94708.0,94699.0,0.075]
[1736360364702,0.10429976,94707.0,94699.0,0.05599998]
[1736360365282,0.10429976,94707.0,94699.0,0.03399997]
[1736360365891,0.11029976,94707.0,94699.0,0.03499997]
[1736360366965,0.11029976,94707.0,94699.0,0.24619397]
[1736360367139,0.11029976,94707.0,94699.0,0.03499997]
[1736360368096,0.11229976,94707.0,94699.0,0.03499997]
[1736360368300,0.008,94707.0,94706.0,0.03399997]
[1736360368471,0.008,94707.0,94706.0,0.32417896]
[1736360368677,0.008,94707.0,94706.0,0.39937896]
[1736360369183,0.002,94707.0,94706.0,0.39937896]
[1736360369392,0.008,94707.0,94706.0,0.40037896]
[1736360369616,0.006,94707.0,94706.0,0.40037896]
[1736360369814,0.04515103,94710.0,94709.0,0.03399997]
[1736360370248,0.04515103,94710.0,94709.0,0.01199996]
[1736360370448,0.04515103,94710.0,94709.0,0.22317296]
[1736360370674,0.04515103,94710.0,94708.0,0.07899999]
[1736360371088,0.04515103,94710.0,94709.0,0.22317296]
[1736360371316,0.04515103,94710.0,94709.0,0.211173]
[1736360371468,0.04515103,94710.0,94709.0,0.22317296]
[1736360371677,0.04515103,94710.0,94709.0,0.211173]
[1736360371881,0.04515103,94710.0,94708.0,0.07899999]
[1736360372097,0.04515103,94710.0,94709.0,0.22317296]
[1736360372295,0.04615103,94710.0,94709.0,0.22317296]
[1736360372471,0.04515103,94710.0,94709.0,0.22317296]
[1736360372896,0.04715103,94710.0,94709.0,0.22317296]
[1736360373172,0.04615103,94710.0,94709.0,0.22317296]
[1736360373588,0.04615103,94710.0,94709.0,0.30617296]
[1736360373794,0.04515103,94710.0,94709.0,0.30617296]
[1736360374095,0.04615103,94710.0,94709.0,0.30617296]
[1736360374301,0.04615103,94710.0,94709.0,0.09499996]
[1736360375237,0.04615103,94710.0,94709.0,0.07299995]
[1736360375660,0.04515103,94710.0,94709.0,0.07299995]
[1736360376497,0.04615103,94710.0,94709.0,0.07299995]
[1736360377873,0.04615103,94710.0,94699.0,0.212194]
[1736360377874,0.211173,94709.0,94699.0,0.212194]
[1736360378117,0.211181,94706.0,94699.0,0.001]
[1736360378317,0.211188,94702.0,94699.0,0.001]
[1736360378547,0.10429976,94701.0,94699.0,0.001]
[1736360378751,0.31549276,94700.0,94699.0,0.001]
[1736360379905,0.10429976,94700.0,94699.0,0.001]
[1736360380328,0.11329976,94700.0,94699.0,0.002]
[1736360380531,0.04515103,94710.0,94700.0,0.211193]
[1736360380804,0.04515103,94710.0,94699.0,0.001]
[1736360381006,0.04515103,94710.0,94701.0,0.18918999]
[1736360381211,0.04515103,94710.0,94705.0,0.21118]
[1736360381450,0.04515103,94710.0,94705.0,0.422361]
[1736360381632,0.10429976,94709.0,94701.0,0.0457]
[1736360381797,0.1056196,94709.0,94699.0,0.001]
[1736360381960,0.009,94700.0,94699.0,0.002]
[1736360382167,0.10429976,94700.0,94699.0,0.001]
[1736360382626,0.10629976,94700.0,94699.0,0.001]
[1736360383031,0.10429976,94700.0,94699.0,0.001]
[1736360383258,0.10929976,94700.0,94699.0,0.001]
[1736360383479,0.11029976,94700.0,94699.0,0.001]
[1736360383702,0.16501884,94700.0,94699.0,0.001]
[1736360383913,0.16901884,94700.0,94699.0,0.001]
[1736360384087,0.11561986,94700.0,94699.0,0.001]
[1736360384267,0.11761986,94700.0,94699.0,0.001]
[1736360384479,0.21761986,94700.0,94699.0,0.001]
[1736360384765,0.11629976,94700.0,94699.0,0.001]
[1736360384944,0.11858108,94700.0,94699.0,0.001]
[1736360385149,0.12758108,94700.0,94699.0,0.002]
[1736360385369,0.211222,94687.0,94674.0,0.211249]
[1736360385577,0.10562008,94686.0,94674.0,0.21175252]
[1736360385837,0.211226,94685.0,94674.0,0.00050352]
[1736360386054,0.15434525,94690.0,94674.0,0.00050352]
[1736360386055,0.10562009,94684.0,94675.0,0.211249]
[1736360386265,0.10429976,94684.0,94676.0,0.422492]
[1736360386423,0.10429976,94684.0,94677.0,0.211244]
[1736360387147,0.10629976,94684.0,94677.0,0.211244]
[1736360387379,0.10629976,94684.0,94674.0,0.21275352]
[1736360387822,0.211231,94683.0,94674.0,0.00150352]
[1736360388044,0.10429976,94682.0,94675.0,0.211249]
[1736360388654,0.10429976,94682.0,94677.0,0.211244]
[1736360388897,0.10429976,94682.0,94677.0,0.422488]
[1736360389864,0.10429976,94682.0,94677.0,0.211244]
[1736360389865,0.10929976,94682.0,94677.0,0.211244]
[1736360390098,0.005,94682.0,94676.0,0.211244]
[1736360390362,0.005,94682.0,94679.0,0.211239]
[1736360390617,0.006,94682.0,94679.0,0.211239]
[1736360391051,0.005,94682.0,94679.0,0.211239]
[1736360391531,0.009,94682.0,94679.0,0.422479]
[1736360391781,0.001,94682.0,94681.0,0.46323499]
[1736360392591,0.00131992,94716.0,94715.0,0.211159]
[1736360392851,0.09368138,94724.0,94722.0,0.211142]
[1736360393107,0.10429976,94723.0,94719.0,0.211149]
[1736360394021,0.10429976,94723.0,94719.0,0.21165252]
[1736360394160,0.211144,94722.0,94719.0,0.00050352]
[1736360394369,0.10429976,94721.0,94719.0,0.00050352]
[1736360394587,0.2124679,94720.0,94719.0,0.00050352]
[1736360394963,0.31544776,94720.0,94719.0,0.00050352]
[1736360395394,0.211166,94713.0,94701.0,0.19069351]
[1736360395536,0.10429976,94712.0,94701.0,0.19119715]
[1736360395767,0.211168,94711.0,94701.0,0.19119715]
[1736360395995,0.10429976,94710.0,94701.0,0.19119715]
[1736360396225,0.31547176,94710.0,94701.0,0.00050364]
[1736360396476,0.10429976,94710.0,94705.0,0.21118]
[1736360396900,0.10429976,94710.0,94701.0,0.00050364]
[1736360396901,0.10429976,94710.0,94707.0,0.211175]
[1736360397052,0.003,94721.0,94703.0,0.07899999]
[1736360397214,0.10429976,94720.0,94706.0,0.07899999]
[1736360397418,0.009,94713.0,94708.0,0.211175]
[1736360397660,0.009,94713.0,94712.0,0.211166]
[1736360397894,0.10429976,94720.0,94712.0,0.211166]
[1736360398135,0.0987671,94738.0,94717.0,0.211153]
[1736360398353,0.00131973,94733.0,94722.0,0.211144]
[1736360398517,0.10429976,94732.0,94720.0,0.07899999]
[1736360398689,0.0013197,94731.0,94721.0,0.211146]
[1736360398894,0.10429976,94730.0,94721.0,0.211146]
[1736360399126,0.10429976,94730.0,94720.0,0.07899999]
[1736360399325,0.00131969,94729.0,94720.0,0.07899999]
[1736360399528,0.10429976,94730.0,94720.0,0.07899999]
[1736360399529,0.009,94738.0,94720.0,0.07899999]
[1736360399738,0.10429976,94737.0,94728.0,0.21113]
[1736360399937,0.10429976,94737.0,94729.0,0.211128]
[1736360400141,0.10429976,94737.0,94729.0,0.422256]
[1736360400343,0.10429976,94737.0,94729.0,0.18912799]
[1736360400752,0.10429976,94737.0,94727.0,0.287432]
[1736360401069,0.004,94730.0,94727.0,0.287432]
[1736360401427,0.004,94730.0,94729.0,0.001]
[1736360401802,0.10629976,94737.0,94727.0,0.0763]
[1736360402355,0.11129976,94737.0,94727.0,0.0763]
[1736360403324,0.211112,94736.0,94727.0,0.0763]
[1736360403543,0.211117,94734.0,94727.0,0.0763]
[1736360403787,0.10429976,94733.0,94727.0,0.0763]
[1736360403991,0.00131966,94732.0,94714.0,0.0797]
[1736360404226,0.211139,94725.0,94714.0,0.0797]
[1736360404462,0.211141,94723.0,94714.0,0.0797]
[1736360404653,0.10429976,94722.0,94714.0,0.0797]
[1736360405118,0.422292,94721.0,94714.0,0.0797]
[1736360405323,0.10429976,94721.0,94714.0,0.13669998]
[1736360405725,0.211125,94731.0,94714.0,0.13769998]
[1736360405955,0.10429976,94730.0,94714.0,0.13769998]
[1736360406420,0.211142,94723.0,94714.0,0.05869999]
[1736360406640,0.211149,94720.0,94714.0,0.05869999]
[1736360406839,0.02111846,94738.0,94714.0,0.13769998]
[1736360407011,0.211131,94728.0,94714.0,0.13769998]
[1736360407247,0.10429976,94727.0,94714.0,0.13869998]
[1736360407457,0.00131966,94726.0,94714.0,0.13669998]
[1736360407682,0.10429976,94725.0,94714.0,0.001]
[1736360407888,0.211159,94715.0,94714.0,0.001]
[1736360408092,0.21117,94711.0,94701.0,0.00050364]
[1736360408304,0.10561968,94710.0,94701.0,0.00050364]
[1736360408518,0.52796068,94710.0,94701.0,0.00050364]
[1736360408719,0.211188,94702.0,94701.0,0.00050364]
[1736360408900,0.31548776,94702.0,94701.0,0.00050364]
[1736360409144,0.10429976,94702.0,94701.0,0.00050364]
[1736360409351,0.211172,94710.0,94701.0,0.00050364]
[1736360409529,0.10429976,94709.0,94701.0,0.00050364]
[1736360410285,0.003,94711.0,94701.0,0.00050364]
[1736360410286,0.003,94711.0,94703.0,0.05329999]
[1736360410513,0.211148,94721.0,94704.0,0.045]
[1736360410715,0.10429976,94720.0,94704.0,0.045]
[1736360410917,0.003,94709.0,94704.0,0.045]
[1736360411143,0.10429976,94708.0,94704.0,0.045]
[1736360411346,0.10429976,94708.0,94701.0,0.00050364]
[1736360411548,0.211177,94707.0,94701.0,0.00050364]
[1736360411759,0.10429976,94706.0,94701.0,0.00050364]
[1736360411961,0.10429976,94706.0,94701.0,0.00150364]
[1736360412185,0.00131996,94705.0,94701.0,0.00050364]
[1736360412381,0.31548376,94704.0,94701.0,0.00050364]
[1736360412611,0.211188,94702.0,94701.0,0.00150364]
[1736360412783,0.31548776,94702.0,94701.0,0.00150364]
[1736360413357,0.10429976,94702.0,94701.0,0.00150364]
[1736360413944,0.10429976,94702.0,94701.0,0.00050364]
[1736360414144,0.10429976,94702.0,94701.0,0.00150364]
[1736360414370,0.10629976,94702.0,94701.0,0.00150364]
[1736360414568,0.00171309,94702.0,94701.0,0.00050364]
[1736360414776,0.211132,94728.0,94701.0,0.07950363]
[1736360414970,0.09368138,94738.0,94701.0,0.07950363]
[1736360414971,0.008,94702.0,94701.0,0.33300363]
[1736360415435,0.011,94702.0,94701.0,0.31100362]
[1736360415848,0.003,94702.0,94701.0,0.35760362]
[1736360416265,0.003,94702.0,94701.0,0.36838347]
[1736360416468,0.211107,94739.0,94723.0,0.211141]
[1736360416674,0.211116,94735.0,94718.0,0.04505762]
[1736360416878,0.10429976,94734.0,94719.0,0.211149]
[1736360417291,0.009,94728.0,94719.0,0.211149]
[1736360417507,0.10429976,94734.0,94719.0,0.211149]
[1736360417920,0.10561939,94734.0,94723.0,0.001]
[1736360418121,0.10561939,94734.0,94718.0,0.04505762]
[1736360418270,0.422257,94729.0,94719.0,0.001]
[1736360418452,0.10429976,94728.0,94719.0,0.001]
[1736360418653,0.10429976,94728.0,94718.0,0.04505762]
[1736360419080,0.21245263,94727.0,94719.0,0.001]
[1736360419260,0.31543476,94726.0,94719.0,0.04605762]
[1736360419897,0.10429976,94726.0,94719.0,0.04605762]
[1736360420096,0.012,94734.0,94720.0,0.211148]
[1736360420274,0.10729976,94734.0,94720.0,0.18914799]
[1736360420468,0.006,94728.0,94720.0,0.18914799]
[1736360420672,0.006,94728.0,94725.0,0.1246]
[1736360420870,0.211093,94745.0,94731.0,0.211123]
[1736360421074,0.211097,94743.0,94731.0,0.211123]
[1736360421299,0.211101,94741.0,94726.0,0.25619262]
[1736360421511,0.10429976,94740.0,94726.0,0.04505762]
[1736360421707,0.0016,94750.0,94732.0,0.211121]
[1736360421875,0.211094,94745.0,94729.0,0.04505762]
[1736360422213,0.211106,94739.0,94732.0,0.00050525]
[1736360422415,0.10429976,94738.0,94732.0,0.00050525]
[1736360422836,0.21111,94737.0,94732.0,0.00050525]
[1736360423015,0.10429976,94738.0,94732.0,0.00050525]
[1736360423875,0.211087,94748.0,94732.0,0.00050525]
[1736360423876,0.0016,94750.0,94737.0,0.04505762]
[1736360424276,0.006,94738.0,94737.0,0.04505762]
[1736360424879,0.007,94738.0,94733.0,0.04505762]
[1736360425078,0.001,94738.0,94737.0,0.04505762]
[1736360425361,0.0106,94750.0,94744.0,0.70955761]
[1736360425567,0.0106,94750.0,94749.0,0.02305761]
[1736360425977,0.01050723,94750.0,94749.0,0.02305761]
[1736360426398,0.01050723,94750.0,94746.0,0.02305761]
[1736360426580,0.00150723,94750.0,94749.0,0.02305761]
[1736360426774,0.00150723,94750.0,94749.0,0.15175761]
[1736360426979,0.00150723,94750.0,94749.0,0.38584161]
[1736360427181,0.00150723,94750.0,94749.0,0.71125761]
[1736360427627,0.02095423,94783.0,94751.0,0.6656]
[1736360427900,0.0141356,94787.0,94768.0,0.023]
[1736360428665,0.10429976,94783.0,94767.0,0.0825]
[1736360429116,0.0141356,94787.0,94775.0,0.02305761]
[1736360429358,0.211001,94786.0,94768.0,0.173]
[1736360429568,0.211001,94786.0,94770.0,0.02305761]
[1736360429975,0.033,94784.0,94771.0,0.02305761]
[1736360430158,0.211008,94783.0,94771.0,0.02305761]
[1736360430357,0.033,94784.0,94771.0,0.0010576]
[1736360430537,0.03,94784.0,94771.0,0.0010576]
[1736360430947,0.03,94784.0,94768.0,0.03372458]
[1736360430948,0.033,94784.0,94774.0,0.0010576]
[1736360431151,0.042,94784.0,94774.0,0.0010576]
[1736360431373,0.042,94784.0,94772.0,0.023]
[1736360431374,0.03,94784.0,94781.0,0.0010576]
[1736360431573,0.03,94784.0,94782.0,0.023]
[1736360431875,0.042,94784.0,94782.0,0.023]
[1736360432123,0.042,94784.0,94783.0,0.234008]
[1736360432318,0.042,94784.0,94781.0,0.0010576]
[1736360432478,0.049,94784.0,94781.0,0.0020576]
[1736360432675,0.049,94784.0,94782.0,0.0010576]
[1736360432889,0.046,94784.0,94783.0,0.0010576]
[1736360433279,0.0454543,94784.0,94783.0,0.0010576]
[1736360433489,0.0454543,94784.0,94782.0,0.0010576]
[1736360433825,0.0274543,94784.0,94783.0,0.0010576]
[1736360434060,0.0274543,94784.0,94783.0,0.0020576]
[1736360435372,0.0274543,94784.0,94782.0,0.001]
[1736360435570,0.0274543,94784.0,94783.0,0.2316]
[1736360436835,0.0274543,94784.0,94783.0,0.33589976]
[1736360437041,0.0274543,94784.0,94783.0,0.38479976]
[1736360437417,0.0274543,94784.0,94783.0,0.40779976]
[1736360437622,0.0274543,94784.0,94783.0,0.40879976]
[1736360437773,0.0141356,94787.0,94786.0,0.023]
[1736360437989,0.1015051,94788.0,94787.0,0.4]
[1736360438195,0.210879,94841.0,94798.0,0.15]
[1736360438395,0.210901,94832.0,94799.0,0.54437176]
[1736360438605,0.710909,94828.0,94799.0,0.54437176]
[1736360438855,0.710909,94828.0,94799.0,0.2291]
[1736360439019,0.210917,94824.0,94799.0,0.2291]
[1736360439227,0.210926,94820.0,94799.0,0.2291]
[1736360439559,0.210926,94820.0,94799.0,0.22960525]
[1736360439720,7e-05,94800.0,94799.0,0.22960525]
[1736360440099,7e-05,94800.0,94799.0,0.15050525]
[1736360440523,7e-05,94800.0,94799.0,0.00050525]
[1736360441152,0.10568827,94800.0,94799.0,0.001]
[1736360441368,0.10436976,94800.0,94799.0,0.001]
[1736360441576,7e-05,94800.0,94799.0,0.001]
[1736360442013,7e-05,94800.0,94792.0,0.210987]
[1736360442412,0.00207,94800.0,94792.0,0.01097009]
[1736360442690,0.00207,94800.0,94790.0,0.15]
[1736360442893,0.00207,94800.0,94791.0,0.023]
[1736360443081,0.00207,94800.0,94797.0,0.210976]
[1736360443440,0.00207,94800.0,94798.0,0.15]
[1736360443642,7e-05,94800.0,94799.0,0.360972]
[1736360443913,7e-05,94800.0,94799.0,0.361972]
[1736360443914,0.00907,94800.0,94799.0,0.361972]
[1736360444110,0.00207,94800.0,94799.0,0.360972]
[1736360444330,7e-05,94800.0,94799.0,0.438772]
[1736360445085,7e-05,94800.0,94799.0,0.440772]
[1736360445292,7e-05,94800.0,94799.0,0.41977199]
[1736360446161,7e-05,94800.0,94799.0,1.07450175]
[1736360446917,7e-05,94800.0,94799.0,1.08538622]
[1736360450392,7e-05,94800.0,94799.0,1.06338621]
[1736360450574,7e-05,94800.0,94799.0,0.98558621]
[1736360450730,7e-05,94800.0,94799.0,0.98258621]
[1736360451133,0.00107,94800.0,94799.0,0.99158621]
[1736360453166,0.00107,94800.0,94799.0,1.09158621]
[1736360453375,0.05,94848.0,94799.0,1.09158621]
[1736360453376,0.05,94848.0,94827.0,0.21091]
[1736360453659,0.260865,94848.0,94827.0,0.73819]
[1736360453856,0.05,94848.0,94827.0,0.88819]